lending/lending_fUSD_20241229
["ID","MTS","AMOUNT","RATE_DAILY","PERIOD"]
[347124349,1735512642513,-500.0,0.00013271,2]
[347124350,1735512642523,-508.56468473,0.00013271,2]
[347124351,1735512642532,-500.0,0.00013271,2]
[347124352,1735512642542,-500.0,0.00013271,2]
[347124353,1735512642551,-500.0,0.00013271,2]
[347124354,1735512642561,-500.0,0.00013271,2]
[347124355,1735512642571,-500.0,0.00013271,2]
[347124356,1735512642580,-500.0,0.00013271,2]
[347124357,1735512642590,-1210.25,0.00013271,2]
[347124358,1735512642601,-500.0,0.00013271,2]
[347124359,1735512642610,-500.0,0.00013271,2]
[347124360,1735512642619,-500.0,0.00013271,2]
[347124361,1735512642629,-500.0,0.00013271,2]
[347124362,1735512642639,-528.76,0.00013271,2]
[347124363,1735512642648,-500.0,0.00013271,2]
[347124364,1735512642657,-500.0,0.00013271,2]
[347124365,1735512642667,-553.00193417,0.00013271,2]
[347124366,1735512642677,-1732.79,0.00013271,2]
[347124367,1735512642686,-604.19,0.00013271,2]
[347124368,1735512642695,-500.0,0.00013271,2]
[347124369,1735512642704,-500.0,0.00013271,2]
[347124370,1735512642713,-500.0,0.00013271,2]
[347124371,1735512642723,-500.0,0.00013271,2]
[347124372,1735512642733,-500.0,0.00013271,2]
[347124373,1735512642742,-500.0,0.00013271,2]
[347124374,1735512642751,-1481.65,0.00013271,2]
[347124375,1735512642760,-588.06,0.00013271,2]
[347124376,1735512642771,-500.0,0.00013271,2]
[347124377,1735512642781,-500.0,0.00013271,2]
[347124378,1735512642790,-537.01991682,0.00013271,2]
[347124379,1735512642801,-407.60573504,0.00013271,2]
[347124380,1735512642810,-500.0,0.00013271,2]
[347124381,1735512642820,-500.0,0.00013271,2]
[347124382,1735512642830,-500.0,0.00013271,2]
[347124383,1735512642840,-709.85,0.00013271,2]
[347124384,1735512642849,-500.0,0.00013271,2]
[347124385,1735512642859,-500.0,0.00013271,2]
[347124386,1735512642868,-1078.57,0.00013271,2]
[347124387,1735512642877,-500.0,0.00013271,2]
[347124388,1735512642887,-500.0,0.00013271,2]
[347124389,1735512642897,-509.04,0.00013271,2]
[347124390,1735512642906,-500.0,0.00013271,2]
[347124391,1735512642917,-500.0,0.00013271,2]
[347124392,1735512642927,-500.0,0.00013272,2]
[347124393,1735512642936,-500.0,0.00013272,2]
[347124394,1735512642946,-543.63,0.00013272,2]
[347124395,1735512642956,-500.0,0.00013272,2]
[347124396,1735512642966,-500.0,0.00013272,2]
[347124397,1735512642977,-500.0,0.00013272,2]
[347124398,1735512642986,-500.0,0.00013272,2]
[347124399,1735512642995,-669.74,0.00013272,2]
[347124400,1735512643006,-500.0,0.00013272,2]
[347124401,1735512643015,-500.0,0.00013272,2]
[347124402,1735512643024,-536.31,0.00013272,2]
[347124403,1735512643034,-500.0,0.00013272,2]
[347124404,1735512643043,-668.56,0.00013272,2]
[347124405,1735512643053,-667.58,0.00013272,2]
[347124406,1735512643063,-500.0,0.00013272,2]
[347124407,1735512643072,-500.0,0.00013272,2]
[347124408,1735512643082,-500.0,0.00013272,2]
[347124409,1735512643091,-500.0,0.00013272,2]
[347124411,1735512643101,-500.0,0.00013272,2]
[347124412,1735512643110,-500.0,0.00013272,2]
[347124413,1735512643120,-500.0,0.00013272,2]
[347124414,1735512643129,-567.13,0.00013272,2]
[347124415,1735512643139,-500.0,0.00013272,2]
[347124416,1735512643148,-500.0,0.00013272,2]
[347124418,1735512643157,-500.0,0.00013272,2]
[347124420,1735512643167,-500.0,0.00013272,2]
[347124422,1735512643176,-500.0,0.00013272,2]
[347124424,1735512643185,-667.88,0.00013272,2]
[347124425,1735512643195,-790.26,0.00013272,2]
[347124426,1735512643204,-500.0,0.00013272,2]
[347124427,1735512643213,-500.0,0.00013272,2]
[347124428,1735512643222,-751.75,0.00013272,2]
[347124429,1735512643232,-726.93,0.00013272,2]
[347124430,1735512643241,-500.0,0.00013272,2]
[347124432,1735512643252,-500.0,0.00013272,2]
[347124434,1735512643264,-516.99828635,0.00013272,2]
[347124435,1735512643274,-500.0,0.00013272,2]
[347124436,1735512643283,-500.0,0.00013272,2]
[347124437,1735512643294,-500.0,0.00013272,2]
[347124438,1735512643303,-500.0,0.00013272,2]
[347124439,1735512643312,-500.0,0.00013272,2]
[347124440,1735512643322,-500.0,0.00013272,2]
[347124441,1735512643332,-500.0,0.00013272,2]
[347124442,1735512643342,-500.0,0.00013272,2]
[347124443,1735512643351,-500.0,0.00013272,2]
[347124444,1735512643361,-533.45266357,0.00013272,2]
[347124445,1735512643370,-500.0,0.00013272,2]
[347124446,1735512643379,-500.0,0.00013272,2]
[347124447,1735512643389,-786.17,0.00013272,2]
[347124448,1735512643399,-507.32,0.00013272,2]
[347124449,1735512643408,-500.0,0.00013272,2]
[347124450,1735512643418,-534.04,0.00013272,2]
[347124451,1735512643427,-500.0,0.00013272,2]
[347124452,1735512643436,-514.64,0.00013272,2]
[347124453,1735512643446,-500.0,0.00013272,2]
[347124454,1735512643455,-500.0,0.00013272,2]
[347124455,1735512643465,-958.79,0.00013272,2]
[347124456,1735512643475,-781.36,0.00013272,2]
[347124457,1735512643484,-689.52,0.00013272,2]
[347124458,1735512643494,-500.0,0.00013272,2]
[347124459,1735512643503,-500.0,0.00013272,2]
[347124460,1735512643512,-839.1,0.00013272,2]
[347124461,1735512643522,-500.0,0.00013272,2]
[347124462,1735512643531,-500.0,0.00013272,2]
[347124463,1735512643541,-500.0,0.00013272,2]
[347124464,1735512643550,-649.3,0.00013272,2]
[347124465,1735512643559,-500.0,0.00013272,2]
[347124466,1735512643570,-1621.79,0.00013272,2]
[347124467,1735512643579,-500.0,0.00013272,2]
[347124468,1735512643588,-500.0,0.00013272,2]
[347124469,1735512643598,-500.0,0.00013272,2]
[347124470,1735512643607,-500.0,0.00013272,2]
[347124471,1735512643617,-506.3,0.00013272,2]
[347124472,1735512643626,-500.0,0.00013272,2]
[347124473,1735512643635,-500.0,0.00013272,2]
[347124474,1735512643644,-535.52,0.00013272,2]
[347124475,1735512643653,-500.0,0.00013272,2]
[347124476,1735512643663,-867.0,0.00013272,2]
[347124477,1735512643673,-500.0,0.00013272,2]
[347124478,1735512643683,-519.68,0.00013272,2]
[347124479,1735512643692,-504.99,0.00013272,2]
[347124481,1735512643701,-2595.17,0.00013272,2]
[347124482,1735512643710,-500.0,0.00013272,2]
[347124483,1735512643719,-512.02,0.00013272,2]
[347124485,1735512643729,-500.0,0.00013272,2]
[347124487,1735512643739,-500.0,0.00013272,2]
[347124489,1735512643748,-751.35,0.00013272,2]
[347124491,1735512643758,-500.0,0.00013272,2]
[347124493,1735512643767,-1112.26,0.00013272,2]
[347124495,1735512643777,-500.0,0.00013272,2]
[347124497,1735512643788,-500.0,0.00013272,2]
[347124499,1735512643797,-866.62,0.00013272,2]
[347124501,1735512643806,-500.0,0.00013272,2]
[347124503,1735512643816,-681.75,0.00013272,2]
[347124504,1735512643825,-645.7,0.00013272,2]
[347124505,1735512643836,-869.68,0.00013272,2]
[347124506,1735512643846,-1784.83,0.00013272,2]
[347124508,1735512643855,-2756.72,0.00013272,2]
[347124510,1735512643865,-500.0,0.00013272,2]
[347124511,1735512643874,-500.0,0.00013272,2]
[347124512,1735512643883,-500.0,0.00013272,2]
[347124513,1735512643892,-720.92,0.00013272,2]
[347124515,1735512643902,-426.66632701,0.00013272,2]
[347124516,1735512643911,-4718.19,0.00013272,2]
[347124517,1735512643920,-1054.35,0.00013272,2]
[347124518,1735512643930,-614.0,0.00013272,2]
[347124519,1735512643939,-1534.62,0.00013272,2]
[347124520,1735512643954,-693.39,0.00013272,2]
[347124521,1735512643963,-653.61,0.00013272,2]
[347124522,1735512643973,-500.0,0.00013272,2]
[347124523,1735512643983,-2984.28,0.00013272,2]
[347124524,1735512643992,-500.0,0.00013272,2]
[347124525,1735512644002,-602.83,0.00013272,2]
[347124526,1735512644010,-1236.17,0.00013272,2]
[347124527,1735512644020,-721.93,0.00013272,2]
[347124528,1735512644029,-500.0,0.00013272,2]
[347124529,1735512644039,-2186.53,0.00013272,2]
[347124530,1735512644048,-500.0,0.00013272,2]
[347124531,1735512644058,-790.8,0.00013272,2]
[347124532,1735512644069,-500.0,0.00013272,2]
[347124533,1735512644079,-500.0,0.00013272,2]
[347124534,1735512644088,-916.71,0.00013272,2]
[347124535,1735512644098,-500.0,0.00013272,2]
[347124536,1735512644109,-1092.16,0.00013272,2]
[347124537,1735512644118,-1092.16,0.00013272,2]
[347124538,1735512644128,-500.0,0.00013272,2]
[347124539,1735512644137,-565.6,0.00013272,2]
[347124540,1735512644146,-855.89,0.00013272,2]
[347124541,1735512644155,-500.0,0.00013272,2]
[347124542,1735512644164,-1208.22,0.00013272,2]
[347124543,1735512644173,-782.54,0.00013272,2]
[347124544,1735512644183,-573.78,0.00013272,2]
[347124545,1735512644192,-500.0,0.00013272,2]
[347124546,1735512644202,-500.0,0.00013272,2]
[347124547,1735512644211,-598.16,0.00013272,2]
[347124548,1735512644221,-500.0,0.00013272,2]
[347124549,1735512644230,-994.58,0.00013272,2]
[347124550,1735512644239,-584.61,0.00013272,2]
[347124551,1735512644249,-500.0,0.00013272,2]
[347124552,1735512644263,-500.0,0.00013272,2]
[347124553,1735512644272,-1141.92,0.00013272,2]
[347124554,1735512644282,-500.0,0.00013272,2]
[347124555,1735512644291,-701.15,0.00013272,2]
[347124556,1735512644302,-7166.23,0.00013272,2]
[347124557,1735512644312,-500.0,0.00013272,2]
[347124558,1735512644321,-500.0,0.00013272,2]
[347124559,1735512644331,-500.0,0.00013273,2]
[347124560,1735512644340,-500.0,0.00013273,2]
[347124561,1735512644349,-500.0,0.00013273,2]
[347124562,1735512644359,-500.0,0.00013273,2]
[347124563,1735512644368,-500.0,0.00013273,2]
[347124564,1735512644378,-593.86,0.00013273,2]
[347124565,1735512644387,-500.0,0.00013273,2]
[347124566,1735512644396,-500.0,0.00013273,2]
[347124567,1735512644405,-475.61952527,0.00013273,2]
[347124568,1735512644415,-500.0,0.00013273,2]
[347124569,1735512644424,-500.0,0.00013273,2]
[347124570,1735512644434,-500.0,0.00013273,2]
[347124571,1735512644443,-500.0,0.00013273,2]
[347124572,1735512644453,-500.0,0.00013273,2]
[347124573,1735512644575,-560.12,0.00013273,2]
[347124574,1735512644599,-500.0,0.00013273,2]
[347124575,1735512644609,-500.0,0.00013273,2]
[347124576,1735512644619,-500.0,0.00013273,2]
[347124577,1735512644628,-500.0,0.00013273,2]
[347124578,1735512644638,-518.98,0.00013273,2]
[347124579,1735512644647,-500.0,0.00013273,2]
[347124580,1735512644656,-500.0,0.00013273,2]
[347124581,1735512644666,-270.64,0.00013273,2]
[347124582,1735512644676,-244.77,0.00013273,2]
[347124583,1735512644685,-500.0,0.00013273,2]
[347124584,1735512644695,-500.0,0.00013273,2]
[347124585,1735512644704,-590.57,0.00013273,2]
[347124586,1735512644714,-500.0,0.00013273,2]
[347124587,1735512644724,-516.04,0.00013273,2]
[347124588,1735512644734,-500.0,0.00013273,2]
[347124589,1735512644744,-500.0,0.00013273,2]
[347124590,1735512644754,-500.0,0.00013273,2]
[347124591,1735512644764,-510.15,0.00013273,2]
[347124592,1735512644773,-500.0,0.00013273,2]
[347124593,1735512644782,-637.65,0.00013273,2]
[347124594,1735512644792,-500.0,0.00013273,2]
[347124595,1735512644801,-500.0,0.00013273,2]
[347124596,1735512644811,-500.0,0.00013273,2]
[347124597,1735512644820,-500.0,0.00013273,2]
[347124598,1735512644830,-500.0,0.00013273,2]
[347124599,1735512644839,-500.0,0.00013273,2]
[347124600,1735512644848,-557.36,0.00013273,2]
[347124601,1735512644858,-500.0,0.00013273,2]
[347124602,1735512644867,-500.0,0.00013273,2]
[347124603,1735512644877,-500.0,0.00013273,2]
[347124604,1735512644886,-500.0,0.00013273,2]
[347124605,1735512644897,-500.0,0.00013273,2]
[347124606,1735512644906,-500.0,0.00013273,2]
[347124607,1735512644915,-500.0,0.00013273,2]
[347124608,1735512644925,-610.97,0.00013273,2]
[347124609,1735512644935,-500.0,0.00013273,2]
[347124610,1735512644945,-500.0,0.00013273,2]
[347124611,1735512644954,-500.0,0.00013273,2]
[347124612,1735512644964,-500.0,0.00013273,2]
[347124613,1735512644973,-500.0,0.00013273,2]
[347124614,1735512644983,-500.0,0.00013273,2]
[347124615,1735512644993,-500.0,0.00013273,2]
[347124616,1735512645003,-500.0,0.00013273,2]
[347124617,1735512645012,-500.0,0.00013273,2]
[347124618,1735512645022,-598.84,0.00013273,2]
[347124619,1735512645031,-500.0,0.00013273,2]
[347124620,1735512645041,-500.0,0.00013273,2]
[347124621,1735512645051,-885.65,0.00013273,2]
[347124622,1735512645060,-500.0,0.00013273,2]
[347124623,1735512645070,-576.7,0.00013273,2]
[347124624,1735512645079,-531.12,0.00013273,2]
[347124625,1735512645089,-925.56,0.00013273,2]
[347124626,1735512645098,-500.0,0.00013273,2]
[347124627,1735512645108,-500.0,0.00013273,2]
[347124628,1735512645117,-500.0,0.00013273,2]
[347124629,1735512645127,-500.0,0.00013273,2]
[347124630,1735512645136,-519.42,0.00013273,2]
[347124631,1735512645146,-739.11,0.00013273,2]
[347124632,1735512645155,-735.49,0.00013273,2]
[347124633,1735512645165,-500.0,0.00013273,2]
[347124634,1735512645175,-798.57,0.00013273,2]
[347124635,1735512645184,-500.0,0.00013273,2]
[347124636,1735512645193,-648.48,0.00013273,2]
[347124637,1735512645202,-500.0,0.00013273,2]
[347124638,1735512645212,-528.84,0.00013273,2]
[347124639,1735512645221,-809.97,0.00013273,2]
[347124640,1735512645230,-371.09,0.00013273,2]
[347124641,1735512645239,-500.0,0.00013273,2]
[347124642,1735512645249,-500.0,0.00013273,2]
[347124643,1735512645260,-500.0,0.00013273,2]
[347124644,1735512645269,-500.0,0.00013273,2]
[347124645,1735512645279,-500.0,0.00013273,2]
[347124646,1735512645288,-524.35,0.00013273,2]
[347124647,1735512645298,-522.01,0.00013273,2]
[347124648,1735512645308,-500.0,0.00013273,2]
[347124649,1735512645317,-500.0,0.00013273,2]
[347124650,1735512645327,-500.0,0.00013273,2]
[347124651,1735512645336,-500.0,0.00013273,2]
[347124652,1735512645345,-532.45,0.00013273,2]
[347124653,1735512645355,-500.0,0.00013273,2]
[347124654,1735512645365,-698.92,0.00013273,2]
[347124655,1735512645375,-500.0,0.00013273,2]
[347124656,1735512645385,-500.0,0.00013273,2]
[347124657,1735512645396,-500.0,0.00013273,2]
[347124658,1735512645406,-541.06,0.00013273,2]
[347124659,1735512645415,-500.0,0.00013273,2]
[347124660,1735512645425,-500.0,0.00013273,2]
[347124661,1735512645434,-500.0,0.00013273,2]
[347124662,1735512645444,-500.0,0.00013273,2]
[347124663,1735512645453,-500.0,0.00013273,2]
[347124664,1735512645462,-517.75,0.00013273,2]
[347124665,1735512645471,-500.0,0.00013273,2]
[347124666,1735512645480,-904.52,0.00013273,2]
[347124667,1735512645490,-506.34060198,0.00013273,2]
[347124668,1735512645501,-628.11,0.00013273,2]
[347124669,1735512645511,-500.0,0.00013273,2]
[347124670,1735512645520,-500.0,0.00013273,2]
[347124671,1735512645529,-500.0,0.00013273,2]
[347124672,1735512645538,-532.12,0.00013273,2]
[347124673,1735512645547,-500.0,0.00013273,2]
[347124674,1735512645555,-500.0,0.00013273,2]
[347124675,1735512645564,-588.86,0.00013273,2]
[347124676,1735512645573,-500.0,0.00013273,2]
[347124677,1735512645583,-549.66,0.00013273,2]
[347124678,1735512645592,-500.0,0.00013273,2]
[347124679,1735512645601,-500.0,0.00013273,2]
[347124680,1735512645610,-500.0,0.00013273,2]
[347124681,1735512645619,-586.0,0.00013273,2]
[347124682,1735512645628,-500.0,0.00013273,2]
[347124683,1735512645637,-625.88,0.00013273,2]
[347124684,1735512645646,-500.0,0.00013273,2]
[347124685,1735512645655,-500.0,0.00013273,2]
[347124686,1735512645664,-500.0,0.00013273,2]
[347124687,1735512645673,-1194.27,0.00013273,2]
[347124688,1735512645683,-555.77,0.00013273,2]
[347124689,1735512645695,-500.0,0.00013273,2]
[347124690,1735512645704,-569.94,0.00013273,2]
[347124691,1735512645712,-500.0,0.00013273,2]
[347124692,1735512645722,-500.0,0.00013273,2]
[347124693,1735512645731,-876.79,0.00013273,2]
[347124694,1735512645741,-500.0,0.00013273,2]
[347124695,1735512645750,-508.57,0.00013273,2]
[347124696,1735512645760,-500.0,0.00013273,2]
[347124697,1735512645771,-500.0,0.00013273,2]
[347124698,1735512645780,-500.0,0.00013273,2]
[347124699,1735512645790,-517.89,0.00013273,2]
[347124700,1735512645800,-1285.64,0.00013273,2]
[347124701,1735512645810,-500.0,0.00013273,2]
[347124702,1735512645819,-500.0,0.00013273,2]
[347124703,1735512645828,-555.82,0.00013273,2]
[347124704,1735512645837,-500.0,0.00013273,2]
[347124705,1735512645847,-701.93,0.00013273,2]
[347124706,1735512645857,-500.0,0.00013273,2]
[347124707,1735512645867,-500.0,0.00013273,2]
[347124708,1735512645876,-687.63,0.00013273,2]
[347124709,1735512645885,-1144.31,0.00013273,2]
[347124710,1735512645895,-500.0,0.00013273,2]
[347124711,1735512645904,-500.0,0.00013273,2]
[347124712,1735512645913,-709.97,0.00013273,2]
[347124713,1735512645922,-500.0,0.00013273,2]
[347124714,1735512645931,-637.95,0.00013273,2]
[347124715,1735512645940,-300.80577485,0.00013273,2]
[347124716,1735512645949,-764.91,0.00013273,2]
[347124717,1735512645958,-562.61,0.00013273,2]
[347124718,1735512645967,-693.6,0.00013273,2]
[347124719,1735512645976,-500.0,0.00013273,2]
[347124720,1735512645986,-500.0,0.00013273,2]
[347124721,1735512645995,-703.11,0.00013273,2]
[347124722,1735512646004,-814.93,0.00013273,2]
[347124723,1735512646013,-500.0,0.00013273,2]
[347124724,1735512646023,-500.0,0.00013273,2]
[347124725,1735512646033,-810.41,0.00013273,2]
[347124726,1735512646043,-1217.7,0.00013273,2]
[347124727,1735512646052,-649.9,0.00013273,2]
[347124728,1735512646062,-633.84,0.00013273,2]
[347124729,1735512646072,-500.0,0.00013273,2]
[347124730,1735512646081,-599.98,0.00013273,2]
[347124731,1735512646091,-500.0,0.00013273,2]
[347124732,1735512646101,-557.36,0.00013273,2]
[347124733,1735512646110,-500.0,0.00013273,2]
[347124734,1735512646119,-639.65,0.00013273,2]
[347124735,1735512646129,-500.0,0.00013273,2]
[347124736,1735512646138,-657.03,0.00013273,2]
[347124737,1735512646147,-634.76,0.00013273,2]
[347124738,1735512646156,-500.0,0.00013273,2]
[347124739,1735512646165,-500.0,0.00013273,2]
[347124740,1735512646174,-500.0,0.00013273,2]
[347124741,1735512646183,-500.0,0.00013273,2]
[347124742,1735512646193,-834.39,0.00013273,2]
[347124743,1735512646202,-500.0,0.00013273,2]
[347124744,1735512646211,-671.99,0.00013273,2]
[347124745,1735512646221,-500.0,0.00013273,2]
[347124746,1735512646230,-500.0,0.00013273,2]
[347124747,1735512646239,-500.0,0.00013273,2]
[347124748,1735512646248,-740.04,0.00013273,2]
[347124749,1735512646262,-1194.96,0.00013273,2]
[347124750,1735512646273,-1069.09,0.00013273,2]
[347124751,1735512646283,-500.0,0.00013273,2]
[347124752,1735512646293,-500.0,0.00013273,2]
[347124753,1735512646310,-500.0,0.00013273,2]
[347124754,1735512646320,-500.0,0.00013273,2]
[347124755,1735512646330,-568.93,0.00013273,2]
[347124756,1735512646339,-500.0,0.00013273,2]
[347124757,1735512646348,-650.86,0.00013273,2]
[347124758,1735512646357,-593.28,0.00013273,2]
[347124759,1735512646366,-774.94,0.00013273,2]
[347124760,1735512646375,-593.04,0.00013273,2]
[347124761,1735512646384,-553.53,0.00013273,2]
[347124762,1735512646393,-500.0,0.00013273,2]
[347124763,1735512646402,-500.0,0.00013273,2]
[347124764,1735512646412,-500.0,0.00013273,2]
[347124765,1735512646421,-500.0,0.00013273,2]
[347124766,1735512646430,-595.68,0.00013273,2]
[347124767,1735512646443,-500.0,0.00013273,2]
[347124768,1735512646453,-736.43,0.00013273,2]
[347124770,1735512646462,-500.0,0.00013273,2]
[347124772,1735512646471,-716.25,0.00013273,2]
[347124774,1735512646481,-500.0,0.00013273,2]
[347124776,1735512646490,-500.0,0.00013273,2]
[347124778,1735512646499,-1190.68,0.00013273,2]
[347124779,1735512646508,-500.0,0.00013273,2]
[347124781,1735512646522,-3138.83,0.00013273,2]
[347124783,1735512646532,-981.31,0.00013273,2]
[347124785,1735512646540,-500.0,0.00013273,2]
[347124786,1735512646549,-1395.02,0.00013273,2]
[347124787,1735512646558,-1950.04,0.00013273,2]
[347124788,1735512646567,-500.0,0.00013273,2]
[347124789,1735512646576,-2327.97,0.00013273,2]
[347124790,1735512646700,-1261.89,0.00013273,2]
[347124791,1735512646710,-500.0,0.00013273,2]
[347124792,1735512646720,-500.0,0.00013273,2]
[347124793,1735512646729,-8391.93,0.00013273,2]
[347124794,1735512646738,-500.0,0.00013273,2]
[347124795,1735512646748,-787.93,0.00013273,2]
[347124796,1735512646757,-13486.76,0.00013273,2]
[347124797,1735512646766,-500.0,0.00013273,2]
[347124798,1735512646775,-500.0,0.00013273,2]
[347124799,1735512646785,-500.0,0.00013273,2]
[347124800,1735512646794,-500.0,0.00013273,2]
[347124801,1735512646803,-4898.19,0.00013273,2]
[347124802,1735512646811,-853.89,0.00013273,2]
[347124803,1735512646820,-500.0,0.00013273,2]
[347124804,1735512646829,-546.94,0.00013273,2]
[347124805,1735512646838,-500.0,0.00013307,2]
[347124806,1735512646846,-918.24,0.00013307,2]
[347124807,1735512646856,-500.0,0.00013307,2]
[347124808,1735512646864,-4892.15,0.00013307,2]
[347124809,1735512646873,-1249.36,0.00013307,2]
[347124810,1735512646883,-500.0,0.00013307,2]
[347124811,1735512646893,-845.04,0.00013307,2]
[347124812,1735512646902,-1779.32,0.00013307,2]
[347124814,1735512646911,-500.0,0.00013307,2]
[347124816,1735512646921,-500.0,0.00013307,2]
[347124818,1735512646930,-992.81,0.00013307,2]
[347124820,1735512646939,-500.0,0.00013307,2]
[347124822,1735512646948,-500.0,0.00013307,2]
[347124824,1735512646957,-500.0,0.00013412,2]
[347124826,1735512646966,-500.0,0.00013412,2]
[347124828,1735512646975,-500.0,0.00013412,2]
[347124830,1735512646984,-174.14533046,0.00013446,2]
[347124832,1735512646994,-300.0,0.00013539,2]
[347124834,1735512647003,-209.83202126,0.00013544,2]
[347124836,1735512647012,-500.0,0.00013545,2]
[347124838,1735512647021,-500.0,0.00013545,2]
[347124840,1735512647031,-500.0,0.00013545,2]
[347124842,1735512647040,-516.3,0.00013545,2]
[347124844,1735512647049,-500.0,0.00013545,2]
[347124846,1735512647058,-500.0,0.00013545,2]
[347124848,1735512647067,-529.26,0.00013545,2]
[347124850,1735512647076,-153.3647197,0.00013545,2]
[347124852,1735512647085,-500.0,0.00013545,2]
[347124854,1735512647094,-500.0,0.00013545,2]
[347124856,1735512647103,-500.0,0.00013545,2]
[347124858,1735512647112,-343.42,0.00013545,2]
[347124860,1735512647121,-536.26,0.00013545,2]
[347124862,1735512647130,-500.0,0.00013545,2]
[347124864,1735512647139,-500.0,0.00013545,2]
[347124866,1735512647148,-500.0,0.00013545,2]
[347124868,1735512647157,-500.0,0.00013545,2]
[347124870,1735512647166,-500.0,0.00013545,2]
[347124872,1735512647175,-548.87,0.00013545,2]
[347124874,1735512647184,-500.0,0.00013545,2]
[347124876,1735512647194,-500.0,0.00013545,2]
[347124878,1735512647203,-500.0,0.00013545,2]
[347124880,1735512647212,-500.0,0.00013545,2]
[347124882,1735512647221,-1300.27,0.00013545,2]
[347124884,1735512647230,-2297.64,0.00013545,2]
[347124886,1735512647239,-500.0,0.00013545,2]
[347124888,1735512647248,-500.0,0.00013545,2]
[347124890,1735512647261,-15551.2,0.00013545,2]
[347124892,1735512647270,-500.0,0.00013545,2]
[347124894,1735512647279,-500.0,0.00013545,2]
[347124896,1735512647288,-282.36833856,0.00013545,2]
[347124898,1735512647298,-500.0,0.00013545,2]
[347124900,1735512647307,-500.0,0.00013545,2]
[347124902,1735512647317,-500.0,0.00013545,2]
[347124904,1735512647326,-677.18,0.00013545,2]
[347124906,1735512647337,-500.0,0.00013545,2]
[347124908,1735512647346,-500.0,0.00013545,2]
[347124910,1735512647355,-500.0,0.00013545,2]
[347124912,1735512647364,-500.0,0.00013545,2]
[347124914,1735512647373,-938.53,0.00013545,2]
[347124916,1735512647384,-2773.74,0.00013545,2]
[347124918,1735512647393,-500.0,0.00013545,2]
[347124920,1735512647402,-500.0,0.00013545,2]
[347124922,1735512647411,-500.0,0.00013545,2]
[347124924,1735512647420,-529.14,0.00013545,2]
[347124926,1735512647430,-549.27,0.00013545,2]
[347124928,1735512647439,-500.0,0.00013545,2]
[347124930,1735512647448,-500.0,0.00013545,2]
[347124932,1735512647457,-500.0,0.00013545,2]
[347124934,1735512647467,-500.0,0.00013545,2]
[347124936,1735512647476,-5366.51,0.00013545,2]
[347124938,1735512647485,-500.0,0.00013545,2]
[347124940,1735512647495,-500.0,0.00013545,2]
[347124942,1735512647504,-500.0,0.00013545,2]